[Event "FIDE Womens Grand Prix-I 2022-23"]
[Site "Nur-Sultan"]
[Date "2022.09.23"]
[Round "6.5"]
[White "Lagno, Kateryna"]
[Black "Tan, Zhongyi"]
[Result "1-0"]
[ECO "B84"]
[WhiteElo "2547"]
[BlackElo "2525"]
[Annotator "TA"]
[PlyCount "77"]
[EventDate "2022.09.15"]
[EventType "tourn"]
[EventCountry "KAZ"]
[SourceTitle "playchess.com"]
[Source "ChessBase"]
[SourceQuality "1"]
[TimeControl "40/5400+30:1800+30"]

{[%evp 14,77,16,16,37,-11,-9,-25,0,-22,-2,-35,22,-10,22,13,37,30,34,21,52,46,39,51,68,59,49,37,69,66,156,172,166,158,170,158,164,170,153,128,126,0,0,0,121,57,66,70,77,64,450,439,447,450,413,387,387,387,706,721,714,706,706,706,653,631]} 1. e4 {[%emt 0:00:03]} c5 {[%emt 0:00:06]} 2. Nf3 {[%emt 0:00:05]} d6 {[%emt 0:00:05]} 3. d4 {[%emt 0:00:16]} cxd4 {[%emt 0:00:06]} 4. Nxd4 {[%emt 0:00:03]} Nf6 {[%emt 0:00:07]} 5. Nc3 {[%emt 0:00:05]} a6 {[%emt 0:00:04]} 6. Be2 {[%emt 0:00:43]} e6 {[%emt 0:00:13]} 7. Be3 $1 {[%emt 0:01:35][%mdl 4] is currently scoring better than 7.0-0.} Be7 {[%emt 0:00:20]} 8. g4 {[%emt 0:01:54]} d5 {[%emt 0:00:36] B84: Sicilian Scheveningen: 6 Be2 a6, lines without early Be3.} 9. e5 {[%emt 0:04:16]} (9. exd5 $14 {is superior.} Nxd5 10. Nxd5 exd5 11. Qd2) 9... Nfd7 $11 {[%emt 0:00:23]} 10. f4 {[%emt 0:00:10]} Nc6 {[%emt 0:02:55] Black has an edge.} 11. Qd2 {[%emt 0:03:52]} Bh4+ $1 {[%emt 0:05:34]} 12. Kf1 {[%emt 0:08:40]} (12. Kd1 $5 {[%cal Rg4g5]}) 12... Be7 {[%emt 0:00:17] [#]} (12... g5 $15) 13. Kg2 $146 {[%emt 0:06:18][%cal Oh2h4]} (13. h4 $5) ({Predecessor:} 13. g5 Nxd4 14. Bxd4 h6 15. g6 fxg6 16. Bd3 O-O 17. Bxg6 Bg5 18. Ne2 Bxf4 19. Nxf4 Qg5 20. Be3 Qxg6 21. Ke1 Qe4 22. Rf1 Nxe5 23. b3 Nf3+ {0-1 (23) Ramdath,S (1808)-Soondarsingh,D (1943) Port of Spain 2016}) 13... Qc7 {[%emt 0:00:17][%cal Og7g5]} (13... g5 $5) 14. Bf3 {[%emt 0:12:16]} Nxd4 {[%emt 0:00:15]} (14... g5 $5) 15. Bxd4 {[%emt 0:00:12]} b5 {[%emt 0:00:05]} 16. Ne2 {[%emt 0:06:10]} Bb7 {[%emt 0:02:27]} 17. c3 {[%emt 0:06:11]} O-O {[%emt 0:03:20]} 18. Qe3 {[%emt 0:06:18]} Rfe8 {[%emt 0:06:00]} 19. g5 {[%emt 0:01:08]} a5 {[%emt 0:06:16]} 20. h4 {[%emt 0:02:44]} b4 {[%emt 0:00:33]} 21. Rac1 {[%emt 0:05:53]} Qc4 {[%emt 0:05:33]} (21... Qd8 $14) 22. cxb4 $16 {[%emt 0:05:00]} Qxb4 {[%emt 0:00:05]} 23. Rc7 {[%emt 0:03:20]} Nf8 {[%emt 0:02:16]} 24. a3 {[%emt 0:04:51]} Qb5 {[%emt 0:00:09] [#]} 25. Nc3 $1 {[%emt 0:05:03]} Qb3 {[%emt 0:02:22]} 26. Bd1 {[%emt 0:03:00] Active counter play!} Qxb2+ {[%emt 0:00:08]} 27. Ne2 {[%emt 0:00:36]} Qb5 {[%emt 0:00:51] Against Ba4} 28. Nc3 $36 {[%emt 0:00:04][%mdl 2048] Black is under pressure.} Qb2+ {[%emt 0:00:04] [#]} 29. Kg3 {[%emt 0:01:57]} (29. Be2 $1 $16 {Strongly threatening Nb5.} Rac8 30. Rb1 (30. Nb5 Rxc7 31. Nxc7 Rc8 $11) 30... Qxe2+ 31. Qxe2 (31. Nxe2 Rxc7 32. Ng3 Bc8 $11) 31... Rxc7 32. Nb5) 29... Bd8 $14 {[%emt 0:04:18]} (29... Bxa3 $2 30. Rh2 Qc1 31. Rxb7 $18) 30. Rc5 {[%emt 0:05:18]} ({Much weaker is} 30. Rh2 Qxh2+ 31. Kxh2 Bxc7 $11) 30... Qxa3 {[%emt 0:01:46] ...Bb6 is the strong threat.} 31. Ba4 {[%emt 0:00:08]} Bb6 $2 {[%emt 0:00:37][%mdl 8192] This costs Black the game.} (31... Ng6 $1 $14) 32. Rb1 $18 {[%emt 0:00:29]} ({Weaker is} 32. Bxe8 Rxe8 33. Rb1 Nd7 $16) 32... Bxc5 {[%emt 0:14:21]} 33. Bxc5 {[%emt 0:00:04][%mdl 64] Trapped Piece} d4 {[%emt 0:00:05]} 34. Bxa3 {[%emt 0:00:20] Dancing on a razor blade. This bishop pair is nice.} dxe3 {[%emt 0:00:08]} 35. Bxe8 {[%emt 0:00:05]} ({Not} 35. Rxb7 Rec8 36. Ne2 Rc4 $16) 35... Rxe8 {[%emt 0:02:57]} (35... Ba6 36. Bb5 Bxb5 37. Rxb5 h6 38. gxh6 gxh6) 36. Rxb7 {[%emt 0:00:03] White is clearly winning.} Rc8 {[%emt 0:00:06]} 37. Ne2 {[%emt 0:00:41]} h6 {[%emt 0:00:29]} 38. gxh6 {[%emt 0:01:02]} gxh6 {[%emt 0:00:07]} 39. h5 {[%emt 0:00:28] Weighted Error Value: White=0.14 (very precise) /Black=0.32} 1-0

[Event "FIDE Womens Grand Prix-I 2022-23"]
[Site "Nur-Sultan"]
[Date "2022.09.23"]
[Round "6.6"]
[White "Kashlinskaya, Alina"]
[Black "Assaubayeva, Bibisara"]
[Result "1-0"]
[ECO "B91"]
[WhiteElo "2491"]
[BlackElo "2443"]
[Annotator "TA"]
[PlyCount "137"]
[EventDate "2022.09.15"]
[EventType "tourn"]
[EventCountry "KAZ"]
[SourceTitle "playchess.com"]
[Source "ChessBase"]
[SourceQuality "1"]
[TimeControl "40/5400+30:1800+30"]

{[%evp 17,137,28,20,21,30,17,16,19,23,10,20,15,19,0,9,0,12,6,14,6,16,8,33,10,46,-19,125,0,12,28,8,0,0,0,0,-42,-39,-132,-96,-111,0,-131,38,-81,-92,-89,11,-99,26,20,25,23,23,24,160,160,161,157,147,150,118,34,73,71,67,67,70,69,81,64,62,68,129,133,137,141,133,159,165,143,237,233,217,197,267,157,157,157,157,157,157,157,157,154,212,198,350,334,586,566,503,481,29966,29966,29963,8859,29976,29976,29977,29978,29973,29974,29974,29975,29975,29976,29975,29977,29976,29977,29977,29978]} 1. e4 {[%emt 0:00:05]} c5 {[%emt 0:05:03]} 2. Nc3 {[%emt 0:00:12]} a6 {[%emt 0:02:02]} 3. Nge2 {[%emt 0:00:52]} d6 {[%emt 0:01:19]} 4. g3 {[%emt 0:00:49]} g6 {[%emt 0:02:37]} 5. Bg2 {[%emt 0:01:02]} Bg7 {[%emt 0:00:02]} 6. d4 {[%emt 0:01:53]} cxd4 {[%emt 0:00:19]} 7. Nxd4 {[%emt 0:00:07]} Nf6 {[%emt 0:00:03]} 8. O-O {[%emt 0:00:15]} O-O {[%emt 0:00:05]} 9. h3 {[%emt 0:00:53]} Nc6 {[%emt 0:00:14]} 10. Be3 {[%emt 0:00:54] B91: Sicilian Najdorf: 6 g3.} Rb8 {[%emt 0:02:19]} 11. Re1 {[%emt 0:08:59] [#]} e5 $146 {[%emt 0:09:47]} ({Predecessor:} 11... Bd7 12. Nd5 Re8 13. Rc1 Nxd5 14. exd5 Nxd4 15. Bxd4 Bh6 16. f4 Qa5 17. a3 b5 {½-½ (57) Sargsyan,S (2601)-Zwirs,N (2422) Groningen 2019}) 12. Nb3 {[%emt 0:06:22] The position is equal.} Be6 {[%emt 0:01:52]} 13. Qd2 {[%emt 0:02:05]} Qc7 {[%emt 0:04:51]} 14. Rad1 {[%emt 0:05:07]} Rfd8 {[%emt 0:01:21]} 15. Bg5 {[%emt 0:05:00]} Ne7 {[%emt 0:05:57]} 16. Re3 {[%emt 0:17:22]} Ne8 {[%emt 0:07:35]} 17. Bxe7 {[%emt 0:10:32]} Qxe7 {[%emt 0:00:02]} 18. Nd5 {[%emt 0:02:13]} Qf8 {[%emt 0:08:49]} 19. Rd3 {[%emt 0:01:52]} f5 {[%emt 0:01:58]} 20. Na5 {[%emt 0:02:40]} Qf7 {[%emt 0:09:11][%cal Of5f4]} 21. Kh2 {[%emt 0:05:38]} (21. exf5 $14 gxf5 22. Rb3) 21... Rbc8 {[%emt 0:03:24] [#]} (21... f4 $11) 22. Nb6 {[%emt 0:00:42] White is more active. Pair of Knights!} (22. Nxb7 $1 $16 {[%mdl 512]} Rd7 23. Na5) 22... Rc7 {[%emt 0:01:22]} 23. exf5 {[%emt 0:02:13]} gxf5 {[%emt 0:02:19]} 24. Bd5 {[%emt 0:00:02]} e4 {[%emt 0:04:13]} 25. Rb3 {[%emt 0:01:34]} Nf6 {[%emt 0:05:11]} 26. Bxe6 {[%emt 0:03:41]} Qxe6 {[%emt 0:00:01]} 27. c4 {[%emt 0:00:17] [#]} (27. Qf4 $15) 27... Bh6 $1 $17 {[%emt 0:04:25][%mdl 512]} 28. Qd4 {[%emt 0:03:04]} (28. Qxh6 $2 Ng4+ $1 {[%mdl 512]} 29. hxg4 Qxh6+ $19) 28... Bg7 {[%emt 0:02:58]} (28... f4 $17 {...Bg7 is the strong threat.} 29. Rg1 f3) 29. Kg2 {[%emt 0:01:33]} (29. Kg1 $11) 29... Rf7 $2 {[%emt 0:01:02]} (29... f4 $1 $17 {[%cal Rf4f3] And now ...f3+ would win.} 30. gxf4 Rf7) 30. Qd2 {[%emt 0:02:08]} (30. Nd5 $1 $14 {was forced to keep a grip.}) 30... f4 $1 {[%emt 0:08:05]} 31. Qxf4 {[%emt 0:01:41]} d5 {[%emt 0:01:25]} (31... Rdf8 $1 $17 32. Rxd6 Qe7) 32. Qe3 {[%emt 0:05:50]} (32. Qg5 $11 h6 33. Qe3 (33. cxd5 $2 Rxd5 34. Qc1 Rxa5 $19)) 32... Kh8 {[%emt 0:02:56]} ({Black should play} 32... Qf5 $17 {[%cal Od5d4] White must now prevent ...d4!} 33. Qf4 Qxf4 34. gxf4 d4) 33. cxd5 {[%emt 0:02:45]} Nxd5 {[%emt 0:00:20]} 34. Nxd5 {[%emt 0:02:25]} Rxd5 {[%emt 0:00:01]} 35. Rb6 {[%emt 0:00:15]} Qxb6 {[%emt 0:03:36]} (35... Qf5 $11 36. Rxd5 Qxd5) 36. Rxd5 $16 {[%emt 0:00:03]} (36. Qxb6 $6 Rxd1 37. Nc4 (37. Qe6 Rf6 $11) 37... Rd5 $16) 36... Qxe3 {[%emt 0:00:13]} 37. Rd8+ {[%emt 0:00:14]} ({Reject} 37. fxe3 $6 Bxb2 38. Nc4 Rc7 39. Nxb2 (39. Rd8+ Kg7 $11) 39... Rc2+ 40. Kf1 Rxb2 $11) 37... Bf8 {[%emt 0:00:05]} 38. fxe3 {[%emt 0:00:02][%mdl 4096] Endgame KRB-KRN} Kg7 {[%emt 0:00:17]} 39. Re8 {[%emt 0:00:18]} ({Better is} 39. Nb3 $16) 39... Rc7 {[%emt 0:00:56]} 40. Rxe4 {[%emt 0:01:32] Strongly threatening Rc4.} Rc2+ {[%emt 0:00:01]} 41. Kf3 {[%emt 0:30:08]} Rxb2 {[%emt 0:30:06]} 42. a4 {[%emt 0:01:50]} b5 {[%emt 0:00:00]} 43. Nc6 {[%emt 0:00:00]} b4 {[%emt 0:00:00]} 44. Nd4 {[%emt 0:00:00]} Kf7 {[%emt 0:00:00]} (44... b3 $14) 45. Re6 {[%emt 0:00:00]} Rb1 {[%emt 0:00:00]} 46. Rxa6 {[%emt 0:00:00]} b3 {[%emt 0:00:00]} 47. Rb6 {[%emt 0:00:00]} b2 {[%emt 0:00:00] Threatens to win with ...Rf1+.} 48. Ke4 {[%emt 0:00:00]} Bc5 {[%emt 0:00:00]} (48... Bg7 $16 49. Kd5 Bf6) 49. Rb7+ $18 {[%emt 0:00:00]} Kf6 {[%emt 0:00:00] aiming for ...Bxd4.} 50. Nc2 {[%emt 0:00:00]} h5 {[%emt 0:00:00] [#]} (50... Bd6 {is a better defense.} 51. g4 Bc5) 51. a5 {[%emt 0:00:00]} (51. Nb4 $1 $18) 51... Bd6 $16 {[%emt 0:00:00]} 52. Rb6 {[%emt 0:00:00]} Ke7 {[%emt 0:00:11]} 53. g4 {[%emt 0:00:00]} hxg4 {[%emt 0:00:01]} 54. hxg4 {[%emt 0:00:00][%cal Bh3g4,Bg4g5][%mdl 32]} Bc5 {[%emt 0:00:40]} 55. Rb7+ {[%emt 0:00:00]} Kd6 {[%emt 0:00:02] [#]} (55... Ke6 $16 56. Rb5 Rg1) 56. g5 $1 $18 {[%emt 0:00:00]} Kc6 $2 {[%emt 0:00:12]} (56... Rg1 57. Rxb2 Rxg5) 57. a6 {[%emt 0:00:00][%cal Ba5a6,Ba6a7][%mdl 32]} Rg1 $2 {[%emt 0:01:19]} (57... Kd6 {keeps fighting.} 58. Na3 Rc1) 58. Rxb2 {[%emt 0:00:00]} Rxg5 {[%emt 0:00:03]} 59. Nd4+ {[%emt 0:02:39]} Bxd4 {[%emt 0:02:38]} (59... Kd6 $18 60. a7 Re5+ 61. Kd3 Bxa7 62. Nb5+ Rxb5 63. Rxb5 Kc6) 60. exd4 {[%emt 0:00:09][%cal Be3d4,Bd4d5][%mdl 32] KR-KR} Ra5 {[%emt 0:02:48]} 61. Rh2 {[%emt 0:00:10]} (61. Rg2 $142 Ra1 62. d5+ Kc7 63. Rg7+ Kd6 64. Rg6+ Kc7 65. Rc6+ Kd8 66. Kd4) 61... Kd6 {[%emt 0:00:19]} 62. a7 {[%emt 0:01:44] White mates.} Kc6 {[%emt 0:01:08]} 63. Rh7 {[%emt 0:00:33]} Ra1 {[%emt 0:00:46]} 64. d5+ {[%emt 0:00:16]} Kc5 {[%emt 0:01:23]} 65. Ke5 {[%emt 0:01:18]} Re1+ {[%emt 0:00:07]} 66. Kf5 {[%emt 0:00:20]} Rf1+ {[%emt 0:00:12]} 67. Ke6 {[%emt 0:00:10]} Re1+ {[%emt 0:00:05]} 68. Kd7 {[%emt 0:00:22]} Ra1 {[%emt 0:00:05]} 69. Kc8 {[%emt 0:00:29] Weighted Error Value: White=0.26 (precise) /Black=0.46} 1-0